bitfinex-derivatives/quotes_SOLF0:USTF0_20250626
["timestamp","ask_amount","ask_price","bid_price","bid_amount"]
[1750946977270,7.0571,141.66,141.63,7.0579]
[1750946977458,7.0571,141.66,141.59,38.16]
[1750946978168,4.54728286,141.67,141.6,4.54728286]
[1750946978568,16.42358286,141.68,141.6,4.54728286]
[1750946979167,38.2,141.69,141.62,4.54728286]
[1750946979358,42.72728286,141.69,141.62,4.54728286]
[1750946979766,42.72728286,141.69,141.64,7.0577]
[1750946980467,38.18,141.69,141.62,4.54728286]
[1750946980676,38.18,141.69,141.58,4.7175]
[1750946980677,38.18,141.72,141.65,4.54728286]
[1750946980859,9.35408286,141.73,141.65,4.54728286]
[1750946981064,6.83678286,141.74,141.65,4.54728286]
[1750946981366,609.04,141.78,141.69,4.54728286]
[1750946981367,43.0585,141.77,141.69,4.54728286]
[1750946981563,4.54728286,141.76,141.71,7.054]
[1750946982270,7.0526,141.75,141.71,7.054]
[1750946982569,49.89807698,141.77,141.71,7.054]
[1750946982769,6.83957698,141.75,141.68,38.18]
[1750946982965,6.83957698,141.71,141.64,38.18]
[1750946983165,6.83957698,141.71,141.64,42.9053]
[1750946983360,7.0548,141.7,141.64,42.9053]
[1750946983566,6.83957698,141.71,141.64,42.9053]
[1750946983866,0.56,141.7,141.67,7.0562]
[1750946984471,0.56,141.7,141.64,42.9053]
[1750946985371,7.0554,141.69,141.65,7.057]
[1750946985859,7.6149,141.7,141.66,7.0567]
[1750946986374,0.56,141.7,141.66,7.0567]
[1750946986574,7.0554,141.69,141.66,7.0567]
[1750946987171,7.0554,141.69,141.65,7.057]
[1750946987370,7.0554,141.69,141.64,38.18]
[1750946987672,7.0554,141.69,141.65,7.057]
[1750946988171,7.0558,141.68,141.65,7.057]
[1750946988373,0.56,141.7,141.66,7.0566]
[1750946988571,0.56,141.7,141.64,38.18]
[1750946989070,0.56,141.7,141.65,7.057]
[1750946989375,7.0555,141.69,141.64,38.18]
[1750946989871,7.0559,141.68,141.65,7.057]
[1750946990265,0.56,141.7,141.64,38.18]
[1750946991182,6.83957698,141.69,141.6,4.7976]
[1750946991479,38.18,141.68,141.6,42.9776]
[1750946991778,6.83957698,141.67,141.6,42.9776]
[1750946992174,6.83957698,141.67,141.61,7.0588]
[1750946992477,6.83957698,141.67,141.6,42.9776]
[1750946993176,7.057,141.66,141.62,7.0587]
[1750946993572,6.83957698,141.67,141.62,7.0587]
[1750946993776,38.18,141.68,141.6,49.81717698]
[1750946993977,2.4058,141.69,141.6,49.81717698]
[1750946994875,7.0563,141.67,141.64,7.0575]
[1750946995768,7.0563,141.67,141.65,7.0572]
[1750946996580,7.056,141.68,141.65,7.0572]
[1750946997177,2.4058,141.69,141.64,7.0575]
[1750946997679,7.0562,141.68,141.64,7.0575]
[1750946998274,7.0562,141.68,141.65,7.0572]
[1750946998582,7.0563,141.67,141.6,49.81717698]
[1750946998778,2.4058,141.69,141.63,7.0579]
[1750946999075,7.0581,141.64,141.6,38.18]
[1750946999277,7.0581,141.64,141.61,7.0589]
[1750946999484,7.0581,141.64,141.6,38.18]
[1750946999677,7.0581,141.64,141.59,2.4762]
[1750946999985,45.01957698,141.66,141.59,2.4762]
[1750947000883,45.01957698,141.66,141.63,7.0581]
[1750947001084,38.18,141.66,141.6,6.83957698]
[1750947001478,45.237,141.66,141.63,7.0578]
[1750947001983,7.0573,141.65,141.62,7.0584]
[1750947002185,38.18,141.66,141.59,2.4762]
[1750947002377,45.01957698,141.66,141.59,2.4762]
[1750947002884,38.18,141.66,141.59,9.31577698]
[1750947003077,38.18,141.66,141.64,7.0573]
[1750947003278,7.0564,141.67,141.59,9.31577698]
[1750947003481,6.83957698,141.68,141.59,9.31577698]
[1750947003785,13.89567698,141.68,141.65,7.0572]
[1750947004080,40.5858,141.69,141.61,38.18]
[1750947004290,7.0568,141.66,141.62,7.0585]
[1750947004585,6.83957698,141.68,141.61,38.18]
[1750947004782,13.89577698,141.68,141.64,7.0575]
[1750947005486,13.89577698,141.68,141.65,7.0572]
[1750947006189,7.0562,141.68,141.65,7.0572]
[1750947006382,7.0562,141.68,141.61,45.01957698]
[1750947006383,0.56,141.7,141.64,4.56426076]
[1750947006796,7.056,141.68,141.65,7.057]
[1750947006982,4.56426076,141.69,141.62,4.7871]
[1750947007181,0.56,141.7,141.62,4.7871]
[1750947007182,4.56426076,141.67,141.62,4.7871]
[1750947007676,4.56426076,141.68,141.62,4.7871]
[1750947008493,4.56426076,141.68,141.61,38.18]
[1750947008688,7.0575,141.65,141.62,7.0585]
[1750947008990,4.56426076,141.66,141.59,7.04046076]
[1750947009490,11.62126076,141.66,141.63,7.0579]
[1750947010088,4.56426076,141.66,141.63,7.0579]
[1750947010291,4.56426076,141.66,141.59,2.4762]
[1750947010686,4.56426076,141.66,141.6,7.0593]
[1750947010889,4.56426076,141.66,141.59,2.4762]
[1750947011286,7.0585,141.63,141.6,7.0595]
[1750947011486,4.56426076,141.62,141.55,655.90981874]
[1750947011685,4.56426076,141.62,141.55,647.18]
[1750947012281,7.0601,141.6,141.56,7.0616]
[1750947012583,4.56426076,141.62,141.55,647.18]
[1750947012984,0.57,141.59,141.58,7.0604]
[1750947016491,0.57,141.59,141.52,161.55659527]
[1750947016492,0.57,141.59,141.52,8.72981874]
[1750947016690,5.13426076,141.59,141.51,4.56426076]
[1750947016996,43.27426076,141.59,141.53,7.063]
[1750947017197,7.062,141.56,141.53,7.063]
[1750947017492,0.57,141.59,141.56,7.0617]
[1750947017697,7.6307,141.59,141.54,4.56426076]
[1750947018095,7.6307,141.59,141.55,7.062]
[1750947018288,7.0608,141.58,141.53,4.56426076]
[1750947018488,0.57,141.59,141.53,4.56426076]
[1750947018692,0.57,141.59,141.55,4.56426076]
[1750947019101,0.57,141.59,141.56,2.4581]
[1750947019399,0.57,141.59,141.55,38.14]
[1750947019998,0.57,141.59,141.56,4.56426076]
[1750947020198,0.57,141.59,141.58,7.0607]
[1750947021011,38.14,141.65,141.58,4.56426076]
[1750947021404,38.14,141.65,141.59,38.14]
[1750947021716,7.0578,141.64,141.61,7.0589]
[1750947021905,38.14,141.65,141.59,38.14]
[1750947022307,7.0585,141.63,141.6,7.0595]
[1750947022716,4.56426076,141.64,141.59,38.14]
[1750947023103,11.62226076,141.64,141.61,7.0592]
[1750947023403,11.62226076,141.64,141.59,38.14]
[1750947023404,4.56426076,141.64,141.56,38.14]
[1750947023715,4.56426076,141.64,141.57,4.56426076]
[1750947024011,7.0578,141.64,141.57,4.56426076]
[1750947024206,7.0578,141.64,141.58,2.4398]
[1750947024406,42.70426076,141.66,141.58,2.4398]
[1750947024606,4.56426076,141.64,141.58,2.4398]
[1750947025510,2.2849,141.69,141.61,4.56426076]
[1750947025711,6.84916076,141.69,141.6,38.14]
[1750947026009,7.0564,141.67,141.63,7.058]
[1750947026205,4.56426076,141.67,141.61,2.271]
[1750947026507,4.56426076,141.64,141.58,2.4398]
[1750947027119,45.1969,141.66,141.58,7.00406076]
[1750947027412,49.76116076,141.66,141.58,7.00406076]
[1750947027614,7.0573,141.65,141.61,7.059]
[1750947028014,7.0573,141.65,141.58,7.00406076]
[1750947028015,4.56426076,141.64,141.58,2.4398]
[1750947028218,4.56426076,141.64,141.6,7.0594]
[1750947028405,4.56426076,141.64,141.58,2.4398]
[1750947028605,4.56426076,141.64,141.58,7.00406076]
[1750947028913,42.70426076,141.66,141.58,7.00406076]
[1750947029115,42.70426076,141.66,141.59,4.56426076]
[1750947029318,49.76126076,141.66,141.62,7.0587]
[1750947030715,7.0574,141.65,141.62,7.0587]
[1750947032011,7.0574,141.65,141.61,7.059]
[1750947032313,4.56426076,141.64,141.58,2.4398]
[1750947032703,11.62226076,141.64,141.61,7.0592]
[1750947032913,4.56426076,141.64,141.58,2.4398]
[1750947033315,7.0586,141.63,141.6,7.0595]
[1750947033505,4.56426076,141.64,141.58,2.4398]
[1750947033811,4.56426076,141.62,141.56,2.271]
[1750947034007,4.56426076,141.6,141.54,38.14]
[1750947034309,4.56426076,141.58,141.56,7.0615]
[1750947034512,4.56426076,141.58,141.54,38.14]
[1750947035210,4.56426076,141.6,141.54,38.14]
[1750947035515,4.56426076,141.6,141.58,7.0604]
[1750947037516,7.0595,141.61,141.58,7.0604]
[1750947037722,7.0595,141.61,141.57,7.061]
[1750947038017,7.0595,141.61,141.54,38.14]
[1750947038216,4.56426076,141.6,141.55,7.0618]
[1750947038419,4.56426076,141.6,141.54,38.14]
[1750947038717,7.0609,141.58,141.54,38.14]
[1750947039315,7.0613,141.57,141.54,45.2023]
[1750947039507,38.92,141.62,141.54,38.14]
[1750947039710,7.0616,141.57,141.54,38.14]
[1750947039910,38.92,141.57,141.51,8.72981874]
[1750947040118,4.56426076,141.56,141.5,43.5394]
[1750947040425,38.92,141.57,141.5,48.10366076]
[1750947040617,38.92,141.57,141.52,4.56426076]
[1750947040809,45.9815,141.57,141.54,7.0625]
[1750947041005,7.0615,141.57,141.54,7.0625]
[1750947042519,4.56426076,141.59,141.52,4.56426076]
[1750947043221,7.0615,141.57,141.54,7.0623]
[1750947043423,4.56426076,141.59,141.52,4.56426076]
[1750947043719,7.0615,141.57,141.54,7.0624]
[1750947044722,7.061,141.58,141.55,7.0622]
[1750947045320,7.0613,141.57,141.55,7.0622]
[1750947046319,7.0609,141.58,141.56,7.0616]
[1750947046520,38.92,141.6,141.54,38.94]
[1750947046720,648.86,141.63,141.55,9.12328144]
[1750947046920,7.06,141.6,141.55,9.12328144]
[1750947047113,648.86,141.63,141.55,9.12328144]
[1750947047320,7.0585,141.63,141.57,6.85608144]
[1750947047918,7.058,141.64,141.57,6.85608144]
[1750947048116,2.4526,141.65,141.57,6.85608144]
[1750947048311,6.85608144,141.64,141.56,2.4665]
[1750947048513,2.4526,141.65,141.57,6.85608144]
[1750947048710,2.4526,141.65,141.58,6.85608144]
[1750947048912,2.4526,141.65,141.6,7.0595]
[1750947049123,7.0585,141.63,141.6,7.0595]
[1750947049324,2.4526,141.65,141.59,7.06]
[1750947049723,6.85608144,141.64,141.59,7.06]
[1750947050126,6.85608144,141.64,141.56,9.32258144]
[1750947050328,7.0593,141.61,141.56,9.32258144]
[1750947050919,7.0597,141.6,141.55,49.91701874]
[1750947051115,7.0597,141.6,141.55,41.1872]
[1750947051426,7.0605,141.59,141.55,41.1872]
[1750947051820,45.77608144,141.62,141.55,41.1872]
[1750947052022,7.06,141.6,141.57,7.061]
[1750947052631,45.77608144,141.62,141.58,7.0605]
[1750947052830,45.77608144,141.62,141.55,41.1872]
[1750947053129,7.06,141.6,141.57,7.061]
[1750947053924,7.0595,141.61,141.58,7.0606]
[1750947054124,38.92,141.62,141.55,41.1872]
[1750947054324,38.92,141.62,141.56,6.85608144]
[1750947054526,41.3726,141.65,141.56,9.35748144]
[1750947054935,7.0581,141.64,141.56,18.08730018]
[1750947055126,41.3726,141.65,141.56,18.08730018]
[1750947055428,7.0589,141.62,141.59,7.0598]
[1750947057327,7.0584,141.63,141.6,7.0594]
[1750947058332,48.22868144,141.65,141.57,6.85608144]
[1750947059132,48.22868144,141.65,141.6,7.0596]
[1750947059334,6.85608144,141.63,141.56,2.5014]
[1750947059837,6.85608144,141.63,141.55,43.6906]
[1750947060334,7.0601,141.6,141.57,7.0609]
[1750947061032,7.0601,141.6,141.58,7.0606]
[1750947061343,7.0594,141.61,141.55,48.04328144]
[1750947061636,7.0594,141.61,141.55,50.49768144]
[1750947061937,6.85608144,141.64,141.55,50.49768144]
[1750947062430,41.3726,141.65,141.57,6.85608144]
[1750947063028,7.0583,141.63,141.57,6.85608144]
[1750947063533,7.0583,141.63,141.6,7.0595]
[1750947063735,41.3726,141.65,141.57,6.85608144]
[1750947063931,41.3726,141.65,141.61,7.0588]
[1750947064132,41.3726,141.65,141.57,6.85608144]
[1750947064742,41.3726,141.65,141.61,7.059]
[1750947064925,41.3726,141.65,141.57,6.85608144]
[1750947065334,7.058,141.64,141.61,7.059]
[1750947065641,38.68,141.68,141.59,45.53608144]
[1750947065835,38.68,141.68,141.64,7.0577]
[1750947066230,7.0568,141.66,141.63,7.058]
[1750947066431,38.68,141.68,141.6,2.377]
[1750947067331,6.85608144,141.67,141.6,2.377]
[1750947067531,38.68,141.68,141.6,2.377]
[1750947067737,7.058,141.64,141.61,7.059]
[1750947068041,6.85608144,141.65,141.61,7.059]
[1750947068428,7.0578,141.64,141.61,7.059]
[1750947068631,6.85608144,141.65,141.61,7.059]
[1750947068840,6.85608144,141.65,141.6,7.0595]
[1750947069040,7.0585,141.63,141.6,7.0595]
[1750947069740,7.0585,141.63,141.61,7.0592]
[1750947069941,6.85608144,141.65,141.59,38.68]
[1750947069942,7.0591,141.62,141.59,38.68]
[1750947070142,6.85608144,141.63,141.59,45.74]
[1750947070738,6.85608144,141.63,141.6,7.0593]
[1750947070939,6.85608144,141.65,141.57,8.72981874]
[1750947071535,7.058,141.64,141.57,8.72981874]
[1750947072042,7.058,141.64,141.61,7.059]
[1750947072247,6.85608144,141.66,141.57,8.72981874]
[1750947072641,6.85608144,141.66,141.61,7.059]
[1750947072848,6.85608144,141.66,141.57,8.72981874]
[1750947073340,6.85608144,141.66,141.58,6.85608144]
[1750947073541,38.68,141.67,141.58,15.58590018]
[1750947074543,7.057,141.66,141.63,7.0582]
[1750947074848,38.68,141.67,141.6,38.68]
[1750947075654,7.0573,141.65,141.62,7.0587]
[1750947075854,38.68,141.67,141.6,38.68]
[1750947076849,45.7365,141.67,141.64,7.0574]
[1750947077055,7.0565,141.67,141.64,7.0574]
[1750947077455,7.0569,141.66,141.63,7.058]
[1750947078057,7.0573,141.65,141.62,7.0585]
[1750947078562,7.057,141.66,141.63,7.0582]
[1750947078759,6.85608144,141.68,141.61,2.3811]
[1750947079054,7.0568,141.66,141.63,7.0582]
[1750947079362,6.85608144,141.68,141.63,7.0582]
[1750947079659,7.057,141.66,141.63,7.0582]
[1750947080157,7.0565,141.67,141.64,7.0577]
[1750947080358,43.24506814,141.66,141.58,8.72981874]
[1750947080657,4.56506814,141.63,141.6,7.0594]
[1750947080864,43.3045,141.66,141.57,4.56506814]
[1750947080865,4.56506814,141.64,141.57,4.56506814]
[1750947081160,4.56506814,141.64,141.61,7.059]
[1750947081352,11.62326814,141.64,141.57,4.56506814]
[1750947081753,4.56506814,141.64,141.57,4.56506814]
[1750947081954,7.0583,141.63,141.57,4.56506814]
[1750947082160,4.56506814,141.64,141.6,7.0596]
[1750947082357,6.85251152,141.63,141.56,2.4485]
[1750947082754,6.85251152,141.63,141.55,659.78421874]
[1750947082952,6.85251152,141.61,141.55,657.32981874]
[1750947083153,6.85251152,141.61,141.55,648.6]
[1750947083362,7.0598,141.6,141.55,648.6]
[1750947083760,6.85251152,141.61,141.56,7.0614]
[1750947084063,6.85251152,141.61,141.55,38.68]
[1750947084259,6.85251152,141.61,141.57,7.0609]
[1750947084866,7.0601,141.6,141.57,7.0609]
[1750947085463,7.0601,141.6,141.58,7.0607]
[1750947085667,7.0601,141.6,141.55,38.68]
[1750947086762,7.0601,141.6,141.58,7.0607]
[1750947087158,7.0602,141.59,141.55,38.68]
[1750947087463,6.85251152,141.61,141.57,7.0611]
[1750947087657,7.0599,141.6,141.57,7.0611]
[1750947087857,6.85251152,141.61,141.57,7.0611]
[1750947088063,6.85251152,141.61,141.58,7.0607]
[1750947088265,7.06,141.6,141.55,38.68]
[1750947088654,6.85251152,141.61,141.55,38.68]
[1750947089164,7.0605,141.59,141.57,7.0609]
[1750947089354,7.0605,141.59,141.55,38.68]
[1750947089561,6.85251152,141.61,141.55,38.68]
[1750947090158,6.85251152,141.61,141.57,7.0609]
[1750947090362,7.0604,141.59,141.57,7.0609]
[1750947090671,6.85251152,141.61,141.57,7.0609]
[1750947090968,7.06,141.6,141.58,7.0607]
[1750947091866,38.68,141.62,141.55,38.68]
[1750947092064,38.68,141.62,141.55,47.40981874]
[1750947092268,38.68,141.62,141.55,49.92211874]
[1750947092461,38.68,141.62,141.59,7.0598]
[1750947092661,45.7389,141.62,141.59,7.0598]
[1750947093057,38.68,141.62,141.6,7.0597]
[1750947093258,45.53251152,141.65,141.56,6.85251152]
[1750947093462,45.53251152,141.65,141.56,15.58233026]
[1750947093875,38.68,141.65,141.58,6.85251152]
[1750947094268,38.68,141.65,141.57,13.47331874]
[1750947094269,45.53251152,141.65,141.57,13.47331874]
[1750947094466,45.53251152,141.65,141.57,4.7435]
[1750947094774,45.53251152,141.65,141.57,11.59601152]
[1750947094969,38.68,141.65,141.59,6.85251152]
[1750947095164,38.68,141.65,141.59,45.19251152]
[1750947095367,38.68,141.65,141.63,7.058]
[1750947095567,7.057,141.66,141.63,7.058]
[1750947095767,6.85251152,141.67,141.63,7.058]
[1750947095970,7.0572,141.65,141.63,7.058]
[1750947096166,6.85251152,141.67,141.62,7.0585]
[1750947096366,6.85251152,141.67,141.59,38.34]
[1750947096562,6.85251152,141.67,141.6,7.0595]
[1750947096775,6.85251152,141.65,141.6,7.0595]
[1750947097270,38.34,141.64,141.55,49.58211874]
[1750947097476,40.7503,141.64,141.55,49.58211874]
[1750947097874,40.7503,141.64,141.59,7.06]
[1750947098069,38.34,141.64,141.55,49.58211874]
[1750947098677,7.0589,141.62,141.55,49.58211874]
[1750947098877,38.34,141.64,141.56,15.58233026]
[1750947099374,7.0585,141.63,141.59,7.0597]
[1750947099575,38.34,141.64,141.59,7.0597]
[1750947100282,7.059,141.62,141.59,7.0597]
[1750947100775,38.34,141.64,141.58,7.0604]
[1750947100983,6.85251152,141.63,141.58,7.0604]
[1750947101181,6.85251152,141.63,141.55,40.8523]
[1750947101374,7.0604,141.59,141.56,7.0614]
[1750947101576,7.0604,141.59,141.55,40.8523]
[1750947101781,7.0608,141.58,141.56,7.0614]
[1750947102278,6.85251152,141.59,141.53,8.72981874]
[1750947102480,7.0613,141.57,141.54,7.0627]
[1750947102981,6.85251152,141.59,141.54,7.0627]
[1750947103781,6.85251152,141.57,141.53,7.063]
[1750947104184,7.0621,141.56,141.53,7.063]
[1750947104380,7.0621,141.56,141.54,7.0626]
[1750947104781,13.91391152,141.57,141.51,4.6758]
[1750947105089,38.34,141.6,141.53,6.85251152]
[1750947105279,7.0595,141.61,141.54,38.36]
[1750947105469,6.85251152,141.62,141.54,47.08981874]
[1750947105874,7.06,141.6,141.54,38.36]
[1750947106489,7.06,141.6,141.57,7.061]
[1750947108478,6.85251152,141.62,141.57,7.061]
[1750947109178,6.85251152,141.62,141.54,38.36]
[1750947109782,40.6924,141.63,141.54,38.36]
[1750947109783,6.85251152,141.58,141.54,38.36]
[1750947109971,6.85251152,141.58,141.51,184.8358]
[1750947110177,7.062,141.56,141.53,7.0627]
[1750947110376,7.062,141.56,141.49,2.4417]
[1750947110377,6.85251152,141.56,141.49,11.17151874]
[1750947110584,6.85251152,141.57,141.49,2.4417]
[1750947110977,9.13241152,141.58,141.49,18.02403026]
[1750947111176,7.0618,141.56,141.52,7.0632]
[1750947111480,7.0618,141.56,141.49,18.02403026]
[1750947111881,7.0618,141.56,141.49,11.17151874]
[1750947112186,7.0618,141.56,141.49,18.02403026]
[1750947112478,9.13241152,141.58,141.49,18.02403026]
[1750947112674,38.36,141.59,141.5,8.72981874]
[1750947112983,7.0612,141.58,141.54,7.0624]
[1750947113181,7.0612,141.58,141.52,38.36]
[1750947113380,38.36,141.59,141.52,38.36]
[1750947113684,38.36,141.59,141.55,7.0619]
[1750947113685,45.4204,141.59,141.55,7.0619]
[1750947114072,45.4204,141.59,141.52,38.36]
[1750947114884,7.0607,141.58,141.52,38.36]
[1750947115487,7.0607,141.58,141.54,7.0622]
[1750947115787,7.0607,141.58,141.52,38.36]
[1750947116692,7.0607,141.58,141.55,7.0619]
[1750947117284,45.4204,141.59,141.56,7.0616]
[1750947117791,7.0607,141.58,141.55,7.062]
[1750947118198,38.36,141.59,141.52,38.36]
[1750947118391,7.0609,141.58,141.54,7.0622]
[1750947118689,7.0609,141.58,141.52,38.36]
[1750947118892,45.21251152,141.59,141.52,38.36]
[1750947119392,7.0617,141.57,141.53,7.063]
[1750947119583,45.21251152,141.59,141.53,7.063]
[1750947119985,7.0617,141.56,141.53,7.063]
[1750947120183,7.0617,141.56,141.54,7.0627]
[1750947120386,45.21251152,141.59,141.54,7.0627]
[1750947120587,7.0616,141.57,141.54,7.0627]
[1750947121488,7.0608,141.58,141.55,7.0621]
[1750947121688,45.21251152,141.59,141.55,7.0621]
[1750947122096,7.0612,141.57,141.54,7.0624]
[1750947122495,42.93088396,141.59,141.56,7.0617]
[1750947122496,7.061,141.58,141.56,7.0617]
[1750947122694,42.93088396,141.59,141.56,7.0617]
[1750947123390,4.57088396,141.61,141.53,7.07918396]
[1750947123597,40.8542,141.62,141.55,4.57088396]
[1750947123598,38.36,141.62,141.55,4.57088396]
[1750947123990,4.57088396,141.61,141.55,2.3879]
[1750947124397,4.57088396,141.61,141.56,7.0616]
[1750947124398,7.0604,141.59,141.56,7.0616]
[1750947124802,4.57088396,141.61,141.54,6.92788396]
[1750947124996,7.0607,141.58,141.55,7.0619]
[1750947125298,4.57088396,141.6,141.54,2.357]
[1750947125595,7.0605,141.59,141.56,7.0614]
[1750947125993,42.93088396,141.62,141.54,6.92788396]
[1750947126195,38.36,141.62,141.56,4.57088396]
[1750947126389,38.36,141.62,141.56,42.85088396]
[1750947126595,7.0597,141.6,141.57,7.0609]
[1750947126792,7.0597,141.6,141.56,38.28]
[1750947127298,7.0597,141.6,141.57,7.0609]
[1750947127985,7.0597,141.6,141.56,38.28]
[1750947128398,4.57088396,141.61,141.56,45.3414]
[1750947128598,4.57088396,141.61,141.56,7.0614]
[1750947128798,7.0604,141.59,141.56,7.0614]
[1750947129599,7.0608,141.58,141.55,7.062]
[1750947129802,4.57088396,141.59,141.53,40.7883]
[1750947130200,7.0611,141.58,141.55,7.062]
[1750947130995,4.57088396,141.61,141.53,40.7883]
[1750947131589,4.57088396,141.59,141.53,40.7883]
[1750947132703,7.0609,141.58,141.55,7.062]
[1750947133706,7.0609,141.58,141.53,40.7883]
[1750947133900,4.57088396,141.57,141.51,11.11771874]
[1750947134101,4.57088396,141.57,141.51,2.3879]
[1750947135407,7.0619,141.56,141.51,2.3879]
[1750947135808,4.57088396,141.57,141.51,2.3879]
[1750947136107,7.0619,141.56,141.53,7.0632]
[1750947136310,4.57088396,141.55,141.48,612.2722]
[1750947136609,4.57088396,141.55,141.48,616.84308396]
[1750947136902,4.57088396,141.55,141.52,7.0633]
[1750947137303,4.57088396,141.55,141.48,616.84308396]
[1750947137510,4.57088396,141.55,141.48,612.2722]
[1750947137696,4.57088396,141.55,141.48,2.4922]
[1750947138206,7.063,141.54,141.51,7.0642]
[1750947138909,11.63418396,141.53,141.5,7.0645]
[1750947139102,4.57088396,141.53,141.5,7.0645]
[1750947139502,11.63438396,141.53,141.5,7.0645]
[1750947139809,11.63438396,141.53,141.51,7.0642]
[1750947140008,4.57088396,141.53,141.47,42.85088396]
[1750947140302,38.28,141.54,141.47,42.85088396]
[1750947140506,38.28,141.54,141.49,4.57088396]
[1750947141911,38.28,141.54,141.47,38.28]
[1750947141912,38.28,141.58,141.54,7.0623]
[1750947142199,38.28,141.58,141.49,2.2966]
[1750947142200,7.0618,141.56,141.49,2.2966]
[1750947142405,7.0618,141.56,141.53,7.0629]
[1750947143200,7.0615,141.57,141.54,7.0627]
[1750947143401,11.63238396,141.57,141.54,7.0627]
[1750947143601,4.57088396,141.57,141.5,4.57088396]
[1750947143910,4.57088396,141.57,141.49,2.2966]
[1750947144207,4.57088396,141.57,141.51,7.0639]
[1750947144405,7.0628,141.54,141.51,7.0639]
[1750947144606,4.57088396,141.55,141.49,2.2966]
[1750947144906,7.0631,141.54,141.49,2.2966]
[1750947145103,4.57088396,141.55,141.49,2.2966]
[1750947145311,4.57088396,141.56,141.49,2.2966]
[1750947145497,7.0627,141.54,141.51,7.0639]
[1750947145701,7.0627,141.54,141.47,38.28]
[1750947145702,4.57088396,141.54,141.47,38.28]
[1750947145899,11.63378396,141.54,141.47,38.28]
[1750947146101,4.57088396,141.56,141.48,4.57088396]
[1750947146301,4.57088396,141.56,141.48,13.3007027]
[1750947146700,7.0628,141.54,141.51,7.0638]
[1750947147405,7.0633,141.53,141.5,7.0645]
[1750947147610,4.57088396,141.54,141.47,38.28]
[1750947147810,42.85088396,141.54,141.47,38.28]
[1750947148006,7.0639,141.52,141.49,7.065]
[1750947148205,4.57088396,141.52,141.46,13.66871874]
[1750947148411,4.57088396,141.52,141.46,2.4897]
[1750947148607,7.0645,141.51,141.48,7.0654]
[1750947149008,7.0651,141.5,141.47,7.066]
[1750947149213,4.57088396,141.52,141.47,7.066]
[1750947149712,7.0644,141.51,141.45,2.4902]
[1750947149913,7.0644,141.51,141.45,11.22001874]
[1750947150213,4.57088396,141.54,141.46,8.72981874]
[1750947150404,38.28,141.56,141.48,4.57088396]
[1750947150603,38.28,141.56,141.47,8.72981874]
[1750947150604,4.57088396,141.54,141.47,8.72981874]
[1750947150808,4.57088396,141.54,141.45,15.7909027]
[1750947151008,4.57088396,141.52,141.45,15.7909027]
[1750947151310,4.57088396,141.52,141.45,2.4902]
[1750947151710,7.0647,141.5,141.45,2.4902]
[1750947151912,7.0647,141.5,141.45,11.22001874]
[1750947152211,4.57088396,141.52,141.45,11.22001874]
[1750947152509,4.57088396,141.5,141.44,47.00981874]
[1750947152713,4.57088396,141.5,141.46,7.0667]
[1750947153008,4.57088396,141.5,141.44,38.28]
[1750947153215,38.28,141.52,141.49,7.0652]
[1750947153419,38.28,141.52,141.45,4.57088396]
[1750947153804,45.3441,141.52,141.49,7.0647]
[1750947154106,7.07138396,141.55,141.47,4.57088396]
[1750947154309,7.07138396,141.55,141.52,7.0637]
[1750947154310,4.57088396,141.55,141.52,7.0637]
[1750947154505,38.28,141.56,141.52,7.0637]
[1750947155915,7.0625,141.55,141.52,7.0637]
[1750947156506,7.0628,141.54,141.52,7.0637]
[1750947156714,38.28,141.56,141.48,40.9862]
[1750947156913,38.28,141.56,141.49,4.57088396]
[1750947157111,7.0625,141.55,141.52,7.0634]